[Event "44th Badalona Open 2018"]
[Site "Badalona"]
[Date "2018.08.06"]
[Round "6"]
[White "Gallego Alcaraz, Andres Felipe"]
[Black "Narciso Dublan, Marc"]
[Result "1/2-1/2"]
[ECO "E11"]
[WhiteElo "2500"]
[BlackElo "2483"]
[Annotator "ChessBase"]
[PlyCount "27"]
[EventDate "2018.08.01"]
[EventType "swiss"]
[EventCountry "ESP"]
[SourceTitle "playchess.com"]
[Source "ChessBase"]
[SourceQuality "1"]
[TimeControl "5400+30"]

1. d4 {[%emt 0:03:21]} e6 {[%emt 0:00:00]} 2. Nf3 {[%emt 0:00:31]} Nf6 {[%emt 0:00:00]} 3. c4 {[%emt 0:00:53]} Bb4+ {[%emt 0:00:22]} 4. Bd2 {[%emt 0:00:31]} c5 {[%emt 0:00:47]} 5. Bxb4 {[%emt 0:00:13]} cxb4 {[%emt 0:00:05]} 6. a3 {[%emt 0:00:12]} bxa3 {[%emt 0:01:03]} 7. Nxa3 {[%emt 0:00:18]} O-O {[%emt 0:01:37]} 8. e3 {[%emt 0:00:57]} Nc6 {[%emt 0:02:39]} 9. Be2 {[%emt 0:00:49]} d6 {[%emt 0:01:47]} 10. O-O {[%emt 0:09:11]} e5 {[%emt 0:05:13]} 11. Nb5 {[%emt 0:03:39]} a6 {[%emt 0:05:32]} 12. d5 {[%emt 0:13:37]} Nb4 {[%emt 0:05:48]} 13. Nd2 {[%emt 0:01:34]} Bf5 14. Nc3 1/2-1/2

[Event "44th Badalona Open 2018"]
[Site "Badalona"]
[Date "2018.08.06"]
[Round "6"]
[White "Aguero Jimenez, Luis Lazaro"]
[Black "Fluvia Poyatos, Jordi"]
[Result "1-0"]
[ECO "B07"]
[WhiteElo "2482"]
[BlackElo "2441"]
[Annotator "RC"]
[PlyCount "81"]
[EventDate "2018.08.01"]
[EventType "swiss"]
[EventCountry "ESP"]
[SourceTitle "playchess.com"]
[Source "ChessBase"]
[SourceQuality "1"]
[TimeControl "5400+30"]

1. e4 {[%emt 0:00:00]} d6 {[%emt 0:00:00]} 2. d4 {[%emt 0:00:00]} Nf6 {[%emt 0:00:06]} 3. Nc3 {[%emt 0:00:00]} g6 {[%emt 0:00:10]} 4. Bg5 {[%emt 0:00:00]} c6 {[%emt 0:01:09]} 5. Qd2 {[%emt 0:00:11]} Nbd7 {[%emt 0:03:08]} 6. O-O-O Qa5 {[%emt 0:01:44]} 7. Nf3 {[%emt 0:01:59]} b5 {[%emt 0:07:04]} 8. e5 {[%emt 0:32:14]} b4 9. Nb1 {[%emt 0:00:21]} Ne4 {[%emt 0:04:07]} 10. Qf4 d5 {[%emt 0:06:44]} 11. e6 {[%emt 0:01:41]} fxe6 {[%emt 0:00:54]} 12. Bd3 Nxf2 {[%emt 0:31:18]} 13. Ne5 {[%emt 0:06:41]} Nxe5 14. Qxf2 Nxd3+ {[%emt 0:06:46]} 15. Rxd3 {[%emt 0:00:56]} e5 {[%emt 0:00:23]} 16. dxe5 {[%emt 0:05:00]} Be6 17. Rf1 Qxa2 {[%emt 0:09:25]} 18. Rf3 {[%emt 0:01:02]} Kd7 {[%emt 0:01:55]} 19. Qc5 {[%emt 0:01:04]} Qc4 {[%emt 0:03:57]} 20. Qe3 {[%emt 0:13:12]} d4 21. Qe1 {[%emt 0:00:23]} Bg7 {[%emt 0:03:04]} 22. b3 Qd5 {[%emt 0:04:38]} 23. Qxb4 {[%emt 0:01:20]} c5 {[%emt 0:05:09]} 24. Qa5 Rhe8 25. Nc3 {[%emt 0:20:33]} Qc6 {[%emt 0:07:15]} 26. Na4 {[%emt 0:09:59]} Rec8 {[%emt 0:02:20]} 27. c4 Bxe5 {[%emt 0:00:46]} 28. Qe1 {[%emt 0:00:54]} Bd6 {[%emt 0:00:18]} 29. Nb2 {[%emt 0:00:39]} Bf5 30. g4 Bxg4 {[%emt 0:01:13]} 31. Rf7 {[%emt 0:01:30]} Be6 32. Nd3 Bxf7 {[%emt 0:01:27]} 33. Rxf7 {[%emt 0:01:09]} Re8 34. Bxe7 Kc7 {[%emt 0:01:25]} 35. Bxd6+ {[%emt 0:02:42]} Kxd6 36. Rf6+ {[%emt 0:00:32]} Kd7 {[%emt 0:00:57]} 37. Ne5+ {[%emt 0:00:06]} Rxe5 {[%emt 0:00:16]} 38. Qxe5 {[%emt 0:00:01]} Qh1+ 39. Kb2 Qg2+ 40. Ka3 Re8 {[%emt 0:01:46]} 41. Rf7+ {[%emt 0:00:11]} 1-0

[Event "44th Badalona Open 2018"]
[Site "Badalona"]
[Date "2018.08.06"]
[Round "6"]
[White "Escalante Ramirez, Brian Sebastian"]
[Black "Verstraeten, Reinaert"]
[Result "0-1"]
[ECO "B96"]
[WhiteElo "2438"]
[BlackElo "2303"]
[Annotator "NA"]
[PlyCount "88"]
[EventDate "2018.08.01"]
[EventType "swiss"]
[EventCountry "ESP"]
[SourceTitle "playchess.com"]
[Source "ChessBase"]
[SourceQuality "1"]
[TimeControl "5400+30"]

1. e4 {[%emt 0:00:53]} c5 {[%emt 0:00:00]} 2. Nf3 {[%emt 0:00:07]} d6 {[%emt 0:00:00]} 3. d4 {[%emt 0:00:06]} Nf6 {[%emt 0:00:00]} 4. Nc3 {[%emt 0:00:11]} cxd4 {[%emt 0:00:00]} 5. Nxd4 {[%emt 0:00:03]} a6 {[%emt 0:00:00]} 6. Bg5 {[%emt 0:00:04]} e6 {[%emt 0:00:05]} 7. f4 {[%emt 0:00:04]} Nbd7 8. Qf3 {[%emt 0:01:05]} Qc7 {[%emt 0:00:10]} 9. O-O-O {[%emt 0:01:36]} b5 10. e5 Bb7 {[%emt 0:00:24]} 11. Qh3 {[%emt 0:17:33]} dxe5 {[%emt 0:00:16]} 12. Nxe6 {[%emt 0:00:04]} fxe6 {[%emt 0:00:06]} 13. Qxe6+ {[%emt 0:00:07]} Be7 {[%emt 0:00:05]} 14. Bxb5 {[%emt 0:00:00]} axb5 15. Nxb5 {[%emt 0:00:05]} Qc6 {[%emt 0:00:48]} 16. Nd6+ {[%emt 0:00:07]} Kd8 {[%emt 0:02:50]} 17. Nf7+ {[%emt 0:00:46]} Kc7 {[%emt 0:01:30]} 18. Qxe7 {[%emt 0:18:07]} Rxa2 19. Nxe5 {[%emt 0:00:02]} Ra1+ {[%emt 0:03:29]} 20. Kd2 {[%emt 0:01:42]} Qd5+ {[%emt 0:05:50]} 21. Ke2 Qe4+ {[%emt 0:00:54]} 22. Kd2 {[%emt 0:01:21]} Qd5+ {[%emt 0:01:02]} 23. Ke2 {[%emt 0:00:05]} Qxg2+ {[%emt 0:03:49]} 24. Kd3 {[%emt 0:00:09]} Qd5+ {[%emt 0:13:57]} 25. Ke2 {[%emt 0:10:27]} Ba6+ {[%emt 0:00:08]} 26. c4 {[%emt 0:00:30]} Bxc4+ {[%emt 0:00:30]} 27. Nxc4 {[%emt 0:00:11]} Qxc4+ {[%emt 0:00:04]} 28. Kf2 {[%emt 0:00:26]} Rxd1 {[%emt 0:01:07]} 29. Rxd1 {[%emt 0:00:28]} Qc2+ {[%emt 0:00:06]} 30. Ke1 Qe4+ {[%emt 0:00:15]} 31. Qxe4 {[%emt 0:00:36]} Nxe4 {[%emt 0:00:03]} 32. Bh4 Rb8 {[%emt 0:00:56]} 33. Rd4 {[%emt 0:00:23]} Ndc5 {[%emt 0:00:16]} 34. b4 {[%emt 0:00:38]} Rxb4 35. Rxb4 {[%emt 0:00:31]} Nd3+ {[%emt 0:00:34]} 36. Ke2 {[%emt 0:00:07]} Nxb4 {[%emt 0:00:00]} 37. Kf3 {[%emt 0:00:34]} Nd6 {[%emt 0:00:51]} 38. Be7 {[%emt 0:00:32]} Nc6 39. Bf8 {[%emt 0:00:10]} Nd4+ {[%emt 0:01:24]} 40. Kg4 {[%emt 0:01:15]} Ne6 41. Be7 {[%emt 0:00:05]} Kd7 {[%emt 0:00:20]} 42. Bh4 {[%emt 0:01:08]} g6 43. Bf6 {[%emt 0:00:18]} Kc6 {[%emt 0:00:16]} 44. Be5 Nf5 0-1

[Event "44th Badalona Open 2018"]
[Site "Badalona"]
[Date "2018.08.06"]
[Round "6"]
[White "Perez Mitjans, Orelvis"]
[Black "Oliva Castaneda, Kevel"]
[Result "0-1"]
[ECO "B47"]
[WhiteElo "2402"]
[BlackElo "2478"]
[Annotator "ChessBase"]
[PlyCount "83"]
[EventDate "2018.08.01"]
[EventType "swiss"]
[EventCountry "ESP"]
[SourceTitle "playchess.com"]
[Source "ChessBase"]
[SourceQuality "1"]
[TimeControl "5400+30"]

1. e4 c5 {[%emt 0:00:00]} 2. Nf3 {[%emt 0:06:58]} e6 {[%emt 0:00:00]} 3. d4 {[%emt 0:00:09]} cxd4 {[%emt 0:00:00]} 4. Nxd4 {[%emt 0:00:00]} Nc6 5. Nc3 {[%emt 0:00:00]} Qc7 {[%emt 0:00:02]} 6. g3 a6 7. Bg2 {[%emt 0:00:24]} d6 {[%emt 0:00:12]} 8. O-O {[%emt 0:00:08]} Bd7 {[%emt 0:00:03]} 9. Re1 {[%emt 0:02:10]} Be7 {[%emt 0:00:00]} 10. a4 {[%emt 0:00:31]} Nf6 {[%emt 0:04:02]} 11. Nb3 {[%emt 0:07:37]} O-O {[%emt 0:01:43]} 12. a5 {[%emt 0:00:30]} Ne5 {[%emt 0:00:30]} 13. h3 {[%emt 0:03:57]} Nc4 {[%emt 0:04:06]} 14. f4 {[%emt 0:00:34]} h6 15. Kh2 {[%emt 0:01:19]} Rfd8 {[%emt 0:04:10]} 16. Qe2 {[%emt 0:02:49]} Rac8 {[%emt 0:16:42]} 17. Qf2 {[%emt 0:04:50]} Bc6 {[%emt 0:09:43]} 18. Bf1 {[%emt 0:06:16]} Be8 {[%emt 0:08:03]} 19. Bd3 {[%emt 0:06:54]} d5 {[%emt 0:00:11]} 20. e5 {[%emt 0:04:10]} Nd7 21. Rf1 {[%emt 0:00:18]} Bb4 {[%emt 0:03:33]} 22. Na4 {[%emt 0:01:58]} Nxa5 23. Nxa5 {[%emt 0:01:08]} Bxa5 {[%emt 0:07:52]} 24. Be3 {[%emt 0:02:43]} Bb4 {[%emt 0:06:47]} 25. Nb6 {[%emt 0:00:30]} Rb8 {[%emt 0:00:30]} 26. Nxd7 {[%emt 0:06:49]} Qxd7 {[%emt 0:00:19]} 27. Bb6 {[%emt 0:03:58]} Rdc8 {[%emt 0:01:40]} 28. f5 {[%emt 0:04:50]} Qc6 {[%emt 0:05:10]} 29. Be3 {[%emt 0:00:30]} Qc7 {[%emt 0:01:30]} 30. Qf4 {[%emt 0:06:19]} Bc5 {[%emt 0:00:30]} 31. Bxc5 {[%emt 0:01:01]} Qxc5 {[%emt 0:00:07]} 32. fxe6 {[%emt 0:00:06]} fxe6 {[%emt 0:01:27]} 33. Qg4 {[%emt 0:20:36]} Bb5 {[%emt 0:03:27]} 34. Qxe6+ {[%emt 0:00:30]} Kh8 {[%emt 0:00:14]} 35. Ra5 {[%emt 0:04:52]} Rf8 {[%emt 0:00:09]} 36. Rxb5 {[%emt 0:00:30]} Rf2+ {[%emt 0:00:06]} 37. Rxf2 {[%emt 0:02:00]} Qxf2+ {[%emt 0:00:30]} 38. Kh1 {[%emt 0:00:00]} Rf8 {[%emt 0:12:32]} 39. Qxd5 {[%emt 0:00:06]} Qxg3 {[%emt 0:00:29]} 40. e6 {[%emt 0:00:30]} Qh4 {[%emt 0:00:30]} 41. Kg1 {[%emt 0:00:02]} Qe1+ {[%emt 0:00:53]} 42. Kh2 {[%emt 0:00:30]} 0-1

[Event "44th Badalona Open 2018"]
[Site "Badalona"]
[Date "2018.08.06"]
[Round "6"]
[White "Panelo, Marcelo"]
[Black "Pulvett Marin, Daniel Eduardo"]
[Result "0-1"]
[ECO "E15"]
[WhiteElo "2360"]
[BlackElo "2464"]
[Annotator "ChessBase"]
[PlyCount "60"]
[EventDate "2018.08.01"]
[EventType "swiss"]
[EventCountry "ESP"]
[SourceTitle "playchess.com"]
[Source "ChessBase"]
[SourceQuality "1"]
[TimeControl "5400+30"]

1. d4 Nf6 2. c4 e6 3. Nf3 b6 4. g3 Ba6 5. Qa4 c6 6. Nc3 Be7 7. e4 O-O 8. e5 Ne8 9. Qc2 d5 10. h4 f5 11. exf6 Nxf6 12. Ng5 Bb4 13. Be3 Qe7 14. Bh3 Bxc4 15. O-O-O Bxc3 16. Bxe6+ Kh8 17. Qxc3 Na6 18. b3 Be2 19. Rde1 Bf3 20. Nxf3 Nb4 21. Kb2 Ne4 22. Bg5 Qxe6 23. Nd2 Qd6 24. Nxe4 dxe4 25. Rxe4 Rxf2+ 26. Bd2 Nd5 27. Qd3 Qb4 28. Kc1 Qa3+ 29. Kd1 Qxa2 30. Qc2 Nc3+ 0-1

[Event "44th Badalona Open 2018"]
[Site "Badalona"]
[Date "2018.08.06"]
[Round "6"]
[White "Jaeel, Atharva"]
[Black "Ferrante, Marco"]
[Result "0-1"]
[ECO "D11"]
[WhiteElo "2081"]
[BlackElo "2330"]
[Annotator "NA"]
[PlyCount "45"]
[EventDate "2018.08.01"]
[EventType "swiss"]
[EventCountry "ESP"]
[SourceTitle "playchess.com"]
[Source "ChessBase"]
[SourceQuality "1"]
[TimeControl "5400+30"]

1. d4 {[%emt 0:00:00]} d5 {[%emt 0:00:00]} 2. c4 {[%emt 0:00:00]} c6 {[%emt 0:00:00]} 3. Nf3 {[%emt 0:00:23]} Nf6 {[%emt 0:00:00]} 4. e3 a6 {[%emt 0:00:00]} 5. Nbd2 {[%emt 0:00:27]} Bf5 {[%emt 0:01:12]} 6. Nh4 {[%emt 0:00:56]} Bg4 {[%emt 0:06:01]} 7. Qc2 e5 {[%emt 0:12:21]} 8. dxe5 {[%emt 0:15:00]} Ne4 9. Nhf3 {[%emt 0:08:24]} Nd7 {[%emt 0:03:44]} 10. e6 fxe6 {[%emt 0:01:24]} 11. Nxe4 {[%emt 0:13:10]} dxe4 12. Qxe4 Bf5 {[%emt 0:10:05]} 13. Qd4 {[%emt 0:04:38]} Bb4+ {[%emt 0:00:07]} 14. Bd2 {[%emt 0:02:57]} e5 15. Qh4 {[%emt 0:01:19]} Bxd2+ {[%emt 0:00:46]} 16. Kxd2 {[%emt 0:00:10]} Qa5+ {[%emt 0:00:23]} 17. Kc1 Nc5 18. e4 {[%emt 0:07:04]} Bxe4 {[%emt 0:08:04]} 19. Qh5+ {[%emt 0:24:54]} Kf8 20. Nxe5 Qe1+ {[%emt 0:35:02]} 21. Qd1 {[%emt 0:00:40]} Qxf2 {[%emt 0:00:17]} 22. Nd7+ {[%emt 0:11:51]} Nxd7 23. Qd6+ {Qf5 Qd2 Nc5} 0-1

[Event "44th Badalona Open 2018"]
[Site "Badalona"]
[Date "2018.08.06"]
[Round "6"]
[White "Mut Company, Guillem Joan"]
[Black "Malonda Rey, Albert"]
[Result "1-0"]
[ECO "D31"]
[WhiteElo "1898"]
[BlackElo "1682"]
[Annotator "NA"]
[PlyCount "133"]
[EventDate "2018.08.01"]
[EventType "swiss"]
[EventCountry "ESP"]
[SourceTitle "playchess.com"]
[Source "ChessBase"]
[SourceQuality "1"]
[TimeControl "5400+30"]

1. d4 {[%emt 0:00:07]} d5 {[%emt 0:00:00]} 2. c4 {[%emt 0:00:56]} e6 {[%emt 0:00:20]} 3. Nc3 {[%emt 0:00:15]} Be7 {[%emt 0:01:01]} 4. cxd5 {[%emt 0:01:06]} exd5 {[%emt 0:00:26]} 5. Bf4 {[%emt 0:00:20]} c6 {[%emt 0:02:52]} 6. Qc2 {[%emt 0:02:36]} Nf6 {[%emt 0:00:15]} 7. e3 {[%emt 0:01:39]} O-O {[%emt 0:01:24]} 8. Bd3 {[%emt 0:01:06]} Re8 {[%emt 0:02:33]} 9. Nf3 {[%emt 0:03:36]} Nbd7 {[%emt 0:03:28]} 10. O-O {[%emt 0:02:47]} h6 {[%emt 0:01:34]} 11. Nb5 {[%emt 0:05:23]} Rf8 {[%emt 0:16:37]} 12. Bc7 {[%emt 0:01:05]} Qe8 {[%emt 0:00:21]} 13. Nd6 {[%emt 0:00:39]} Bxd6 {[%emt 0:00:14]} 14. Bxd6 {[%emt 0:00:05]} Ne4 {[%emt 0:04:00]} 15. Bxf8 {[%emt 0:02:20]} Nxf8 {[%emt 0:02:00]} 16. Nd2 {[%emt 0:03:32]} Nd6 {[%emt 0:02:24]} 17. b4 {[%emt 0:03:24]} Bd7 {[%emt 0:03:17]} 18. Nb3 {[%emt 0:02:25]} Qe7 {[%emt 0:02:32]} 19. Rae1 {[%emt 0:02:49]} Qh4 {[%emt 0:06:14]} 20. f3 {[%emt 0:04:16]} Re8 {[%emt 0:01:26]} 21. a4 {[%emt 0:07:47]} f5 {[%emt 0:03:09]} 22. Nc5 {[%emt 0:02:09]} Bc8 {[%emt 0:03:40]} 23. b5 {[%emt 0:02:36]} Qg5 {[%emt 0:03:44]} 24. bxc6 {[%emt 0:03:28]} bxc6 {[%emt 0:02:55]} 25. Qf2 {[%emt 0:04:33]} Ng6 {[%emt 0:01:27]} 26. Kh1 {[%emt 0:06:11]} h5 {[%emt 0:02:36]} 27. Re2 {[%emt 0:04:27]} Kh7 {[%emt 0:04:01]} 28. Rb1 {[%emt 0:00:53]} Kh6 {[%emt 0:01:47]} 29. a5 {[%emt 0:02:26]} f4 {[%emt 0:01:17]} 30. exf4 {[%emt 0:02:09]} Nxf4 {[%emt 0:00:46]} 31. Rxe8 {[%emt 0:00:23]} Nxe8 {[%emt 0:01:22]} 32. Qd2 {[%emt 0:02:45]} Nd6 {[%emt 0:07:11]} 33. g3 {[%emt 0:02:00]} Nh3 {[%emt 0:01:17]} 34. Qxg5+ {[%emt 0:00:43]} Nxg5 {[%emt 0:00:28]} 35. Kg2 {[%emt 0:00:56]} Bf5 {[%emt 0:01:09]} 36. Kf2 {[%emt 0:03:31]} Bxd3 {[%emt 0:01:03]} 37. Nxd3 {[%emt 0:00:07]} Nc4 {[%emt 0:01:28]} 38. a6 {[%emt 0:01:28]} Nxf3 {[%emt 0:00:11]} 39. Rb7 {[%emt 0:00:41]} Nxd4 {[%emt 0:01:07]} 40. Rxa7 {[%emt 0:00:13]} Nb5 {[%emt 0:02:48]} 41. Rb7 {[%emt 0:00:42]} Ncd6 {[%emt 0:01:06]} 42. a7 {[%emt 0:00:32]} Nxa7 {[%emt 0:00:32]} 43. Rxa7 {[%emt 0:00:04]} Ne4+ {[%emt 0:00:38]} 44. Ke3 {[%emt 0:00:40]} c5 {[%emt 0:00:37]} 45. Rc7 {[%emt 0:01:09]} Nf6 {[%emt 0:01:14]} 46. Rxc5 {[%emt 0:03:59]} Ng4+ {[%emt 0:00:28]} 47. Kf4 {[%emt 0:00:22]} Nxh2 {[%emt 0:00:52]} 48. Rc6+ {[%emt 0:02:04]} Kh7 {[%emt 0:00:41]} 49. Rd6 {[%emt 0:00:56]} Ng4 {[%emt 0:00:29]} 50. Rxd5 {[%emt 0:00:37]} Nf6 {[%emt 0:00:33]} 51. Ra5 {[%emt 0:01:34]} Kg6 {[%emt 0:00:25]} 52. Nf2 {[%emt 0:01:06]} Kh6 {[%emt 0:01:15]} 53. Ne4 {[%emt 0:00:15]} Nh7 {[%emt 0:00:35]} 54. Ra6+ {[%emt 0:00:21]} g6 {[%emt 0:00:14]} 55. Rb6 {[%emt 0:01:27]} Nf8 {[%emt 0:00:25]} 56. Ng5 {[%emt 0:00:37]} Nd7 {[%emt 0:01:38]} 57. Rb7 {[%emt 0:01:20]} Nf6 {[%emt 0:00:07]} 58. Nf7+ {[%emt 0:01:07]} Kg7 {[%emt 0:00:14]} 59. Ne5+ {[%emt 0:00:26]} Kh6 {[%emt 0:00:21]} 60. Nf3 {[%emt 0:00:37]} Ng4 {[%emt 0:00:38]} 61. Rb6 {[%emt 0:01:06]} Nf2 {[%emt 0:02:03]} 62. Ne5 {[%emt 0:00:39]} Nh3+ {[%emt 0:00:20]} 63. Ke3 {[%emt 0:00:27]} Kg5 {[%emt 0:00:11]} 64. Rxg6+ {[%emt 0:00:54]} Kf5 {[%emt 0:00:25]} 65. Rh6 {[%emt 0:00:42]} Kg5 {[%emt 0:00:14]} 66. Rh8 {[%emt 0:00:58]} Ng1 {[%emt 0:00:18]} 67. Nf3+ {[%emt 0:00:12]} 1-0

[Event "44th Badalona Open 2018"]
[Site "Badalona"]
[Date "2018.08.06"]
[Round "6"]
[White "Casares Bonals, Ainhoa"]
[Black "Palacios Pena, Gerardo"]
[Result "1-0"]
[ECO "B12"]
[WhiteElo "1637"]
[BlackElo "1861"]
[Annotator "NA"]
[PlyCount "76"]
[EventDate "2018.08.01"]
[EventType "swiss"]
[EventCountry "ESP"]
[SourceTitle "playchess.com"]
[Source "ChessBase"]
[SourceQuality "1"]
[TimeControl "5400+30"]

1. e4 {[%emt 0:00:00]} c6 {[%emt 0:00:10]} 2. d4 {[%emt 0:00:00]} d5 {[%emt 0:00:50]} 3. e5 {[%emt 0:00:00]} Bf5 {[%emt 0:01:15]} 4. Nf3 {[%emt 0:00:56]} e6 {[%emt 0:02:44]} 5. Be2 {[%emt 0:01:40]} Nd7 {[%emt 0:01:00]} 6. Nbd2 {[%emt 0:00:30]} Ne7 {[%emt 0:00:11]} 7. O-O {[%emt 0:02:01]} h6 {[%emt 0:00:30]} 8. Nb3 {[%emt 0:02:14]} Bh7 {[%emt 0:00:13]} 9. Bd2 {[%emt 0:06:26]} Nf5 {[%emt 0:00:54]} 10. Rc1 {[%emt 0:00:30]} Be7 {[%emt 0:00:35]} 11. c4 {[%emt 0:06:40]} dxc4 {[%emt 0:00:09]} 12. Bxc4 {[%emt 0:09:46]} O-O {[%emt 0:00:34]} 13. Be2 {[%emt 0:00:30]} Nb6 {[%emt 0:00:09]} 14. Ba5 {[%emt 0:05:53]} Qb8 {[%emt 0:00:15]} 15. Nc5 {[%emt 0:00:30]} Bxc5 {[%emt 0:00:30]} 16. dxc5 {[%emt 0:01:47]} Nd5 {[%emt 0:00:12]} 17. Bc3 {[%emt 0:01:10]} Qc7 {[%emt 0:00:30]} 18. Re1 {[%emt 0:00:30]} Rfe8 {[%emt 0:00:38]} 19. Qb3 {[%emt 0:10:01]} Red8 {[%emt 0:02:19]} 20. Nd2 {[%emt 0:00:30]} Nxc3 {[%emt 0:00:30]} 21. Qxc3 {[%emt 0:00:30]} Rd7 {[%emt 0:00:30]} 22. Nc4 {[%emt 0:00:30]} Ne7 {[%emt 0:04:32]} 23. Bh5 {[%emt 0:05:18]} Nd5 {[%emt 0:00:10]} 24. Qg3 {[%emt 0:00:36]} Ne7 {[%emt 0:01:30]} 25. Bg4 {[%emt 0:02:58]} Rd3 {[%emt 0:00:30]} 26. Re3 {[%emt 0:00:30]} Rxe3 {[%emt 0:00:30]} 27. Qxe3 {[%emt 0:00:30]} Bf5 {[%emt 0:00:30]} 28. Bf3 {[%emt 0:00:30]} Nd5 {[%emt 0:03:48]} 29. Qb3 {[%emt 0:04:23]} Rb8 {[%emt 0:01:22]} 30. Nd6 {[%emt 0:13:39]} Bg6 {[%emt 0:03:19]} 31. Bxd5 {[%emt 0:03:33]} cxd5 {[%emt 0:01:55]} 32. Qc3 {[%emt 0:00:30]} Qc6 {[%emt 0:00:09]} 33. b4 {[%emt 0:01:30]} Qa4 {[%emt 0:00:52]} 34. b5 {[%emt 0:01:48]} d4 {[%emt 0:00:25]} 35. Qd2 {[%emt 0:05:02]} d3 {[%emt 0:00:10]} 36. c6 {[%emt 0:00:30]} bxc6 {[%emt 0:00:30]} 37. bxc6 {[%emt 0:00:30]} Qa6 {[%emt 0:00:00]} 38. c7 {[%emt 0:01:02]} Rc8 {[%emt 0:00:13]} 1-0